{"text_format":"1","workbook":"xlsx","n_sheets":3,"sheets":["Hoja1","Hoja2","Hoja3"],"not_rendered":{"charts":1,"images":0,"macros":0,"external_links":0,"defined_names":4,"comments":0,"pivot_tables":0},"unopened":[],"bounds":{"document_bytes":16777216,"sheet_cells":100000,"rows_first":2000,"rows_last":500,"rows_between":2000,"halvings":0,"cell_chars":16384,"cell_head_chars":4096},"cells_cut":0,"cells_raw":0,"read":"whole","date_system":"1900"}

{"sheet":"Hoja1","index":0,"n_rows":33,"n_cols":7,"rows_kept":33,"cut":false,"hidden":false,"merged":[[4,3,4,11],[5,3,5,11],[7,3,7,4],[8,3,8,4],[9,3,9,4],[6,3,6,4]]}
["Trabajo realizado con el apoyo del Programa  UNAM-DGAPA-PAPIME PE110517"]
[]
[]
[]
[null,null,null,"Energía potencial."]
[null,null,null,"Da una masa y una altura a un cuerpo para hallar su energía potencial."]
[null,null,null,"Gravedad (m/s2)",null,9.81]
[null,null,null,"Masa (kg)",null,40]
[null,null,null,"Altura (m)",null,5]
[null,null,null,"Energía potencial (J)",null,{"$f":"(m)*(h)*(g)","v":1962}]
[]
[]
[null,null,null,null,"Masa","Altura","Energía Potencial."]
[null,null,null,null,10,5,{"$f":"(g)*(E14)*(F14)","v":490.50000000000006}]
[null,null,null,null,20,10,1962.0000000000002]
[null,null,null,null,30,15,4414.5]
[null,null,null,null,40,20,7848.0000000000009]
[null,null,null,null,50,25,12262.5]
[null,null,null,null,60,30,17658]
[null,null,null,null,70,35,24034.5]
[null,null,null,null,80,40,{"$f":"(g)*(E21)*(F21)","v":31392.000000000004}]
[null,null,null,null,90,45,39730.500000000007]
[null,null,null,null,100,50,49050]
[null,null,null,null,110,55,59350.500000000007]
[null,null,null,null,120,60,70632]
[null,null,null,null,130,65,82894.5]
[null,null,null,null,140,70,96138]
[null,null,null,null,150,75,110362.5]
[null,null,null,null,160,80,125568.00000000001]
[null,null,null,null,170,85,141754.5]
[null,null,null,null,180,90,158922.00000000003]
[null,null,null,null,190,95,177070.5]
[null,null,null,null,200,100,196200]

{"sheet":"Hoja2","index":1,"n_rows":0,"n_cols":0,"rows_kept":0,"cut":false,"hidden":false,"merged":[]}

{"sheet":"Hoja3","index":2,"n_rows":0,"n_cols":0,"rows_kept":0,"cut":false,"hidden":false,"merged":[]}